[Event "Karel Janecek Open 2025"]
[Site "Prague"]
[Date "2025.03.01"]
[Round "3.10"]
[White "Ioannidis, Evgenios"]
[Black "Prazak, Daniel"]
[Result "1-0"]
[Annotator "ChessBase"]
[ECO "D11"]
[WhiteElo "2484"]
[BlackElo "2319"]
[PlyCount "121"]
[EventDate "2025.02.21"]
[EventType "swiss"]
[EventCountry "CZE"]
[SourceTitle "playchess.com"]
[Source "ChessBase"]
[SourceQuality "1"]
[TimeControl "40/5400+30:1800+30"]

1. d4 {[%emt 0:00:12]} d5 {[%emt 0:00:30]} 2. Nf3 {[%emt 0:00:39]} Nf6 {[%emt 0:00:27]} 3. c4 {[%emt 0:00:11]} c6 {[%emt 0:00:26]} 4. Qc2 {[%emt 0:00:44]} g6 {[%emt 0:01:32]} 5. cxd5 {[%emt 0:00:24]} cxd5 {[%emt 0:00:57]} 6. Bf4 {[%emt 0:00:10]} Nc6 {[%emt 0:01:50]} 7. e3 {[%emt 0:00:16]} Bg7 {[%emt 0:02:47]} 8. Nc3 {[%emt 0:00:35]} O-O {[%emt 0:00:48]} 9. Be2 {[%emt 0:00:07]} Bg4 {[%emt 0:07:52]} 10. h3 {[%emt 0:00:37]} Bxf3 {[%emt 0:00:18]} 11. Bxf3 {[%emt 0:00:21]} Rc8 {[%emt 0:04:11]} 12. O-O {[%emt 0:00:30]} e6 {[%emt 0:01:53]} 13. Rfc1 {[%emt 0:04:29]} Qe7 {[%emt 0:11:41]} 14. Be2 {[%emt 0:13:53]} Rfd8 {[%emt 0:04:28]} 15. Qb3 {[%emt 0:06:22]} Ne8 {[%emt 0:07:10]} 16. a3 {[%emt 0:04:24]} Nd6 {[%emt 0:06:50]} 17. Nb5 {[%emt 0:04:16]} Nxb5 {[%emt 0:03:08]} 18. Bxb5 {[%emt 0:00:16]} Qd7 {[%emt 0:11:02]} 19. Ba4 {[%emt 0:04:35]} Qe7 {[%emt 0:05:39]} 20. Bb5 {[%emt 0:04:57]} Nb8 {[%emt 0:03:32]} 21. Qb4 {[%emt 0:05:19]} Bf8 {[%emt 0:03:56]} 22. Qa5 {[%emt 0:03:24]} b6 {[%emt 0:01:47]} 23. Qa4 {[%emt 0:02:24]} Qb7 {[%emt 0:01:05]} 24. Bg5 {[%emt 0:00:11]} Be7 {[%emt 0:01:04]} 25. Bxe7 {[%emt 0:00:36]} Qxe7 {[%emt 0:00:10]} 26. Rc2 {[%emt 0:00:05]} Rc7 {[%emt 0:02:49]} 27. Rac1 {[%emt 0:04:28]} Rdc8 {[%emt 0:00:10]} 28. h4 {[%emt 0:00:58]} h5 {[%emt 0:01:30]} 29. g3 {[%emt 0:00:05]} Kg7 {[%emt 0:00:23]} 30. Kh2 {[%emt 0:04:03]} Qd6 {[%emt 0:01:08]} 31. Kg2 {[%emt 0:01:32]} Rxc2 {[%emt 0:01:17]} 32. Rxc2 {[%emt 0:00:06]} Rc7 {[%emt 0:00:44]} 33. Kf1 {[%emt 0:00:36]} Qd8 {[%emt 0:01:59]} 34. Ke1 {[%emt 0:00:11]} Qc8 {[%emt 0:00:18]} 35. Rxc7 {[%emt 0:00:10]} Qxc7 {[%emt 0:00:08]} 36. Kd2 {[%emt 0:00:03]} Kg8 {[%emt 0:03:29]} 37. Qb4 {[%emt 0:04:11]} Kg7 {[%emt 0:01:03]} 38. Bd3 {[%emt 0:06:27]} Kg8 {[%emt 0:02:05]} 39. e4 {[%emt 0:00:55]} dxe4 {[%emt 0:03:26]} 40. Bxe4 {[%emt 0:00:08]} Qd8 {[%emt 0:04:21]} 41. Ke3 {[%emt 0:35:35]} Nd7 {[%emt 0:06:21]} 42. Qd6 {[%emt 0:00:00]} Qc8 {[%emt 0:01:26]} 43. Qc6 {[%emt 0:00:00]} Qd8 {[%emt 0:03:09]} 44. Qa8 {[%emt 0:00:00]} Qxa8 {[%emt 0:00:16]} 45. Bxa8 {[%emt 0:00:00]} Kg7 {[%emt 0:04:41]} 46. Bc6 {[%emt 0:00:00]} Nf6 {[%emt 0:01:49]} 47. f3 {[%emt 0:00:00]} Kf8 {[%emt 0:03:01]} 48. d5 {[%emt 0:00:00]} Ke7 {[%emt 0:04:23]} 49. dxe6 {[%emt 0:00:00]} Kxe6 {[%emt 0:00:20]} 50. Kd4 {[%emt 0:00:00]} Ng8 {[%emt 0:02:21]} 51. Bd5+ {[%emt 0:00:10]} Ke7 {[%emt 0:01:05]} 52. Ke5 {[%emt 0:03:46]} Nh6 {[%emt 0:01:15]} 53. Be4 {[%emt 0:00:21]} Ng8 {[%emt 0:00:34]} 54. Bd3 {[%emt 0:04:22]} Nf6 {[%emt 0:01:44]} 55. Bb5 {[%emt 0:01:24]} Ng8 {[%emt 0:00:34]} 56. Kd5 {[%emt 0:04:47]} Nh6 {[%emt 0:00:54]} 57. Bd3 {[%emt 0:01:20]} Kd7 {[%emt 0:00:15]} 58. Bf1 {[%emt 0:00:04]} f5 {[%emt 0:01:33]} 59. Ke5 {[%emt 0:00:16]} Ke7 {[%emt 0:00:14]} 60. Bc4 {[%emt 0:00:05]} Nf7+ {[%emt 0:00:34]} 61. Bxf7 {[%emt 0:04:45]} 1-0

[Event "Karel Janecek Open 2025"]
[Site "Prague"]
[Date "2025.03.01"]
[Round "3.11"]
[White "Vykouk, Jan"]
[Black "Chittka, Julius"]
[Result "1-0"]
[Annotator "ChessBase"]
[ECO "B13"]
[WhiteElo "2478"]
[BlackElo "2313"]
[PlyCount "61"]
[EventDate "2025.02.21"]
[EventType "swiss"]
[EventCountry "CZE"]
[SourceTitle "playchess.com"]
[Source "ChessBase"]
[SourceQuality "1"]
[TimeControl "40/5400+30:1800+30"]

1. e4 {[%emt 0:00:03]} c6 {[%emt 0:00:11]} 2. d4 {[%emt 0:00:10]} d5 {[%emt 0:00:11]} 3. exd5 {[%emt 0:00:06]} cxd5 {[%emt 0:00:07]} 4. Bd3 {[%emt 0:00:04]} Nc6 {[%emt 0:00:21]} 5. c3 {[%emt 0:00:04]} Qc7 {[%emt 0:00:38]} 6. h3 {[%emt 0:00:32]} e6 {[%emt 0:01:05]} 7. Nf3 {[%emt 0:00:14]} Bd6 {[%emt 0:00:33]} 8. O-O {[%emt 0:00:07]} Nge7 {[%emt 0:02:08]} 9. Re1 {[%emt 0:00:08]} O-O {[%emt 0:00:42]} 10. b3 {[%emt 0:00:05]} Bd7 {[%emt 0:04:01]} 11. Ba3 {[%emt 0:03:55]} f6 {[%emt 0:02:34]} 12. Bxd6 {[%emt 0:01:38]} Qxd6 {[%emt 0:00:06]} 13. c4 {[%emt 0:00:44]} Rad8 {[%emt 0:05:55]} 14. Nc3 {[%emt 0:01:24]} Bc8 {[%emt 0:09:13]} 15. c5 {[%emt 0:11:04]} Qf4 {[%emt 0:08:53]} 16. Qc1 {[%emt 0:05:15]} Qb8 {[%emt 0:01:58]} 17. Qb1 {[%emt 0:00:08]} e5 {[%emt 0:14:04]} 18. dxe5 {[%emt 0:09:03]} fxe5 {[%emt 0:01:15]} 19. Bxh7+ {[%emt 0:00:29]} Kh8 {[%emt 0:00:15]} 20. Ng5 {[%emt 0:00:50]} e4 {[%emt 0:06:34]} 21. Qd1 {[%emt 0:04:56]} Rf6 {[%emt 0:04:31]} 22. Bxe4 {[%emt 0:05:11]} dxe4 {[%emt 0:02:04]} 23. Qh5+ {[%emt 0:00:06]} Kg8 {[%emt 0:01:48]} 24. Ncxe4 {[%emt 0:03:21]} Rh6 {[%emt 0:07:45]} 25. Qf7+ {[%emt 0:01:40]} Kh8 {[%emt 0:00:06]} 26. Nd6 {[%emt 0:02:26]} Rhxd6 {[%emt 0:02:55]} 27. cxd6 {[%emt 0:00:34]} Qxd6 {[%emt 0:00:53]} 28. Qh5+ {[%emt 0:02:57]} Kg8 {[%emt 0:00:06]} 29. Rad1 {[%emt 0:02:50]} Qc7 {[%emt 0:03:42]} 30. Rxd8+ {[%emt 0:02:57]} Qxd8 {[%emt 0:00:12]} 31. Rd1 {[%emt 0:00:30]} 1-0

[Event "Karel Janecek Open 2025"]
[Site "Prague"]
[Date "2025.03.01"]
[Round "3.12"]
[White "Haring, Filip"]
[Black "Eret, Matous"]
[Result "1-0"]
[Annotator "ChessBase"]
[ECO "A55"]
[WhiteElo "2470"]
[BlackElo "2304"]
[PlyCount "89"]
[EventDate "2025.02.21"]
[EventType "swiss"]
[EventCountry "CZE"]
[SourceTitle "playchess.com"]
[Source "ChessBase"]
[SourceQuality "1"]
[TimeControl "40/5400+30:1800+30"]

1. Nf3 {[%emt 0:00:28]} Nf6 {[%emt 0:00:06]} 2. c4 {[%emt 0:00:08]} d6 {[%emt 0:00:07]} 3. d4 {[%emt 0:00:21]} Nbd7 {[%emt 0:00:19]} 4. Nc3 {[%emt 0:00:31]} e5 {[%emt 0:00:12]} 5. e4 {[%emt 0:00:08]} c6 {[%emt 0:00:16]} 6. Be2 {[%emt 0:00:25]} Be7 {[%emt 0:00:28]} 7. O-O {[%emt 0:00:10]} O-O {[%emt 0:00:15]} 8. Be3 {[%emt 0:00:55]} a6 {[%emt 0:03:02]} 9. d5 {[%emt 0:03:21]} cxd5 {[%emt 0:03:36]} 10. cxd5 {[%emt 0:04:50]} b5 {[%emt 0:04:58]} 11. Nd2 {[%emt 0:01:39]} Bb7 {[%emt 0:05:02]} 12. b4 {[%emt 0:05:44]} Rc8 {[%emt 0:02:12]} 13. Qb3 {[%emt 0:05:35]} Nb6 {[%emt 0:17:02]} 14. a4 {[%emt 0:04:54]} Nc4 {[%emt 0:01:39]} 15. Nxc4 {[%emt 0:07:13]} bxc4 {[%emt 0:00:07]} 16. Qc2 {[%emt 0:00:01]} Nd7 {[%emt 0:04:29]} 17. Bg4 {[%emt 0:06:38]} g6 {[%emt 0:16:58]} 18. Bh6 {[%emt 0:05:19]} Re8 {[%emt 0:01:06]} 19. a5 {[%emt 0:01:16]} Rc7 {[%emt 0:11:18]} 20. h3 {[%emt 0:12:03]} Bg5 {[%emt 0:01:53]} 21. Bxg5 {[%emt 0:00:08]} Qxg5 {[%emt 0:00:08]} 22. b5 {[%emt 0:01:54]} Nc5 {[%emt 0:02:21]} 23. b6 {[%emt 0:01:36]} Rce7 {[%emt 0:00:09]} 24. Ra3 {[%emt 0:04:19]} Nb3 {[%emt 0:04:25]} 25. Be2 {[%emt 0:13:24]} Rc8 {[%emt 0:04:52]} 26. Bxc4 {[%emt 0:09:29]} Nd2 {[%emt 0:01:40]} 27. f4 {[%emt 0:00:12]} exf4 {[%emt 0:00:04]} 28. Qxd2 {[%emt 0:00:06]} Rxc4 {[%emt 0:00:04]} 29. Qxf4 {[%emt 0:04:10]} Qxf4 {[%emt 0:00:11]} 30. Rxf4 {[%emt 0:00:04]} f5 {[%emt 0:00:06]} 31. Kf2 {[%emt 0:00:51]} Kg7 {[%emt 0:01:06]} 32. Ke3 {[%emt 0:01:31]} Re8 {[%emt 0:02:54]} 33. g3 {[%emt 0:03:59]} Re5 {[%emt 0:09:46]} 34. Kd3 {[%emt 0:00:46]} Rc5 {[%emt 0:00:39]} 35. Ra4 {[%emt 0:02:18]} h5 {[%emt 0:01:44]} 36. h4 {[%emt 0:00:50]} Kf7 {[%emt 0:00:35]} 37. exf5 {[%emt 0:00:48]} gxf5 {[%emt 0:00:12]} 38. Rac4 {[%emt 0:00:46]} Ke7 {[%emt 0:02:05]} 39. Kd4 {[%emt 0:00:37]} Rxc4+ {[%emt 0:00:43]} 40. Kxc4 {[%emt 0:00:02]} Kf6 {[%emt 0:00:22]} 41. Kd4 {[%emt 0:30:48]} Re1 {[%emt 0:03:49]} 42. Rf2 {[%emt 0:00:00]} Rg1 {[%emt 0:02:21]} 43. Ne4+ {[%emt 0:00:00]} Kg6 {[%emt 0:01:36]} 44. Nxd6 {[%emt 0:00:00]} Rd1+ {[%emt 0:00:05]} 45. Kc3 {[%emt 0:00:00]} 1-0

[Event "Karel Janecek Open 2025"]
[Site "Prague"]
[Date "2025.03.01"]
[Round "3.13"]
[White "Kukelko, Alexey"]
[Black "Zhao, Yuanhe"]
[Result "0-1"]
[Annotator "ChessBase"]
[ECO "B30"]
[WhiteElo "2327"]
[BlackElo "2466"]
[PlyCount "94"]
[EventDate "2025.02.21"]
[EventType "swiss"]
[EventCountry "CZE"]
[SourceTitle "playchess.com"]
[Source "ChessBase"]
[SourceQuality "1"]
[TimeControl "40/5400+30:1800+30"]

1. e4 {[%emt 0:05:53]} c5 {[%emt 0:00:08]} 2. Nf3 {[%emt 0:00:58]} Nc6 {[%emt 0:00:16]} 3. Bb5 {[%emt 0:02:23]} e6 {[%emt 0:01:00]} 4. O-O {[%emt 0:02:16]} Nge7 {[%emt 0:00:10]} 5. Re1 {[%emt 0:01:21]} a6 {[%emt 0:02:39]} 6. Bf1 {[%emt 0:00:13]} Ng6 {[%emt 0:02:18]} 7. c3 {[%emt 0:02:12]} Be7 {[%emt 0:00:57]} 8. d4 {[%emt 0:03:50]} cxd4 {[%emt 0:00:09]} 9. cxd4 {[%emt 0:00:03]} d5 {[%emt 0:00:05]} 10. e5 {[%emt 0:03:20]} O-O {[%emt 0:01:52]} 11. Nc3 {[%emt 0:08:04]} Nh4 {[%emt 0:07:18]} 12. Nxh4 {[%emt 0:03:25]} Bxh4 {[%emt 0:00:07]} 13. Be3 {[%emt 0:02:50]} Bd7 {[%emt 0:02:51]} 14. Rc1 {[%emt 0:03:37]} Na5 {[%emt 0:06:39]} 15. b4 {[%emt 0:04:44]} Nc4 {[%emt 0:11:58]} 16. Bxc4 {[%emt 0:00:15]} dxc4 {[%emt 0:00:05]} 17. d5 {[%emt 0:00:12]} exd5 {[%emt 0:02:54]} 18. Nxd5 {[%emt 0:06:03]} Be6 {[%emt 0:00:56]} 19. Nf4 {[%emt 0:03:46]} Qxd1 {[%emt 0:07:11]} 20. Rexd1 {[%emt 0:06:59]} b5 {[%emt 0:00:22]} 21. Nxe6 {[%emt 0:10:21]} fxe6 {[%emt 0:00:07]} 22. Bc5 {[%emt 0:00:29]} Bg5 {[%emt 0:01:20]} 23. Rc2 {[%emt 0:06:47]} Rad8 {[%emt 0:06:23]} 24. Bd6 {[%emt 0:04:02]} Rf5 {[%emt 0:01:04]} 25. Rd4 {[%emt 0:03:12]} Rd7 {[%emt 0:05:15]} 26. Kf1 {[%emt 0:02:11]} Be3 {[%emt 0:02:35]} 27. Re4 {[%emt 0:02:32]} Bb6 {[%emt 0:00:07]} 28. f3 {[%emt 0:01:41]} Rdf7 {[%emt 0:01:24]} 29. Ke1 {[%emt 0:02:15]} Rf4 {[%emt 0:02:16]} 30. Rce2 {[%emt 0:01:29]} g5 {[%emt 0:00:22]} 31. Kd2 {[%emt 0:02:11]} Kg7 {[%emt 0:01:07]} 32. h3 {[%emt 0:04:04]} Kg6 {[%emt 0:01:36]} 33. Kc3 {[%emt 0:00:23]} Rxe4 {[%emt 0:00:47]} 34. Rxe4 {[%emt 0:00:04]} Rf4 {[%emt 0:00:47]} 35. Re2 {[%emt 0:02:27]} Rd4 {[%emt 0:00:45]} 36. Kc2 {[%emt 0:01:23]} Rd3 {[%emt 0:01:19]} 37. Rd2 {[%emt 0:00:32]} Rxd2+ {[%emt 0:00:48]} 38. Kxd2 {[%emt 0:00:00]} Kf5 {[%emt 0:00:07]} 39. Kc3 {[%emt 0:00:51]} Kf4 {[%emt 0:01:07]} 40. Be7 {[%emt 0:00:21]} Be3 {[%emt 0:03:48]} 41. h4 {[%emt 0:02:47]} gxh4 {[%emt 0:00:28]} 42. Bxh4 {[%emt 0:00:06]} Kxe5 {[%emt 0:00:10]} 43. g3 {[%emt 0:01:22]} Kf5 {[%emt 0:00:27]} 44. Be7 {[%emt 0:00:21]} h5 {[%emt 0:00:14]} 45. Bc5 {[%emt 0:00:14]} Bg5 {[%emt 0:00:16]} 46. Kd4 {[%emt 0:00:32]} e5+ {[%emt 0:00:51]} 47. Kc3 {[%emt 0:00:16]} e4 {[%emt 0:00:20]} 0-1

[Event "Karel Janecek Open 2025"]
[Site "Prague"]
[Date "2025.03.01"]
[Round "3.14"]
[White "Kraus, Tomas"]
[Black "Klek, Hanna Marie"]
[Result "1-0"]
[Annotator "ChessBase"]
[ECO "B13"]
[WhiteElo "2451"]
[BlackElo "2289"]
[PlyCount "67"]
[EventDate "2025.02.21"]
[EventType "swiss"]
[EventCountry "CZE"]
[SourceTitle "playchess.com"]
[Source "ChessBase"]
[SourceQuality "1"]
[TimeControl "40/5400+30:1800+30"]

1. Nf3 {[%emt 0:00:34]} d5 {[%emt 0:00:07]} 2. e3 {[%emt 0:00:43]} c5 {[%emt 0:00:30]} 3. d4 {[%emt 0:02:45]} Nc6 {[%emt 0:01:16]} 4. Bb5 {[%emt 0:03:30]} cxd4 {[%emt 0:04:45]} 5. exd4 {[%emt 0:00:46]} Nf6 {[%emt 0:03:29]} 6. c4 {[%emt 0:03:15]} Bd7 {[%emt 0:07:49]} 7. Nc3 {[%emt 0:12:14]} a6 {[%emt 0:18:33]} 8. Bxc6 {[%emt 0:00:27]} bxc6 {[%emt 0:00:31]} 9. c5 {[%emt 0:02:13]} g6 {[%emt 0:01:54]} 10. Na4 {[%emt 0:06:59]} Bg4 {[%emt 0:15:41]} 11. Nb6 {[%emt 0:00:33]} Bxf3 {[%emt 0:00:45]} 12. Qa4 {[%emt 0:01:43]} Ra7 {[%emt 0:06:09]} 13. Qxc6+ {[%emt 0:00:30]} Nd7 {[%emt 0:00:10]} 14. gxf3 {[%emt 0:01:38]} Bg7 {[%emt 0:00:41]} 15. Bf4 {[%emt 0:07:09]} O-O {[%emt 0:03:43]} 16. Nxd7 {[%emt 0:02:49]} Rxd7 {[%emt 0:00:37]} 17. O-O-O {[%emt 0:02:24]} a5 {[%emt 0:07:13]} 18. Rhe1 {[%emt 0:00:49]} Ra7 {[%emt 0:01:33]} 19. Re3 {[%emt 0:06:04]} e6 {[%emt 0:03:23]} 20. Bd6 {[%emt 0:06:38]} Re8 {[%emt 0:00:50]} 21. Rb3 {[%emt 0:00:31]} Ra8 {[%emt 0:00:49]} 22. Rb7 {[%emt 0:05:30]} Qg5+ {[%emt 0:01:11]} 23. f4 {[%emt 0:02:21]} Qf5 {[%emt 0:00:08]} 24. Ra7 {[%emt 0:07:52]} Rac8 {[%emt 0:00:31]} 25. Rc7 {[%emt 0:00:25]} Ra8 {[%emt 0:01:43]} 26. Ra7 {[%emt 0:00:07]} Rac8 {[%emt 0:00:07]} 27. Qb5 {[%emt 0:02:43]} e5 {[%emt 0:06:38]} 28. Bxe5 {[%emt 0:03:30]} Rxe5 {[%emt 0:00:12]} 29. dxe5 {[%emt 0:01:08]} Bh6 {[%emt 0:01:01]} 30. Qd3 {[%emt 0:01:51]} Qxf4+ {[%emt 0:00:44]} 31. Kb1 {[%emt 0:00:48]} Rxc5 {[%emt 0:00:15]} 32. a3 {[%emt 0:00:36]} Qxe5 {[%emt 0:03:45]} 33. Ra8+ {[%emt 0:00:45]} Kg7 {[%emt 0:00:43]} 34. Rd8 {[%emt 0:01:16]} 1-0

[Event "Karel Janecek Open 2025"]
[Site "Prague"]
[Date "2025.03.01"]
[Round "3.15"]
[White "Knudsen, Simon"]
[Black "Rubes, Jan"]
[Result "1/2-1/2"]
[Annotator "ChessBase"]
[ECO "C02"]
[WhiteElo "2312"]
[BlackElo "2444"]
[PlyCount "80"]
[EventDate "2025.02.21"]
[EventType "swiss"]
[EventCountry "CZE"]
[SourceTitle "playchess.com"]
[Source "ChessBase"]
[SourceQuality "1"]
[TimeControl "40/5400+30:1800+30"]

1. e4 {[%emt 0:00:05]} e6 {[%emt 0:00:05]} 2. d4 {[%emt 0:00:44]} d5 {[%emt 0:00:06]} 3. e5 {[%emt 0:01:34]} c5 {[%emt 0:00:04]} 4. c3 {[%emt 0:00:05]} Nc6 {[%emt 0:00:03]} 5. Nf3 {[%emt 0:00:07]} Bd7 {[%emt 0:00:03]} 6. Be2 {[%emt 0:01:24]} Nge7 {[%emt 0:00:04]} 7. O-O {[%emt 0:02:00]} Ng6 {[%emt 0:00:08]} 8. Na3 {[%emt 0:02:00]} Be7 {[%emt 0:00:20]} 9. Re1 {[%emt 0:04:41]} O-O {[%emt 0:00:17]} 10. Nc2 {[%emt 0:01:26]} cxd4 {[%emt 0:04:11]} 11. cxd4 {[%emt 0:00:07]} f6 {[%emt 0:00:06]} 12. exf6 {[%emt 0:07:35]} Bxf6 {[%emt 0:00:39]} 13. Bd3 {[%emt 0:01:37]} Qb6 {[%emt 0:07:36]} 14. Be3 {[%emt 0:20:42]} Nce7 {[%emt 0:13:37]} 15. b3 {[%emt 0:06:17]} Qd6 {[%emt 0:12:38]} 16. Bc1 {[%emt 0:06:19]} Rae8 {[%emt 0:05:24]} 17. Bxg6 {[%emt 0:03:04]} hxg6 {[%emt 0:03:11]} 18. Ne5 {[%emt 0:00:09]} Bxe5 {[%emt 0:02:50]} 19. Rxe5 {[%emt 0:00:19]} Rf5 {[%emt 0:00:14]} 20. Ba3 {[%emt 0:03:32]} Qa6 {[%emt 0:00:14]} 21. Bxe7 {[%emt 0:06:50]} Rxe7 {[%emt 0:00:18]} 22. Re1 {[%emt 0:01:17]} Qd6 {[%emt 0:07:08]} 23. Ne3 {[%emt 0:00:45]} Rf8 {[%emt 0:03:57]} 24. Ng4 {[%emt 0:01:48]} Qf4 {[%emt 0:00:23]} 25. f3 {[%emt 0:00:30]} Rc8 {[%emt 0:01:24]} 26. Qd3 {[%emt 0:05:00]} Be8 {[%emt 0:01:22]} 27. Rad1 {[%emt 0:05:21]} Qf5 {[%emt 0:02:35]} 28. Qd2 {[%emt 0:05:49]} Rec7 {[%emt 0:03:33]} 29. Qb4 {[%emt 0:00:41]} Bf7 {[%emt 0:02:03]} 30. Re2 {[%emt 0:05:53]} b6 {[%emt 0:00:15]} 31. Rde1 {[%emt 0:01:24]} Qf4 {[%emt 0:00:15]} 32. Qd2 {[%emt 0:00:13]} g5 {[%emt 0:06:33]} 33. Qe3 {[%emt 0:04:27]} Rc2 {[%emt 0:01:31]} 34. Kf2 {[%emt 0:00:50]} R8c3 {[%emt 0:02:18]} 35. Qxf4 {[%emt 0:01:35]} gxf4 {[%emt 0:00:05]} 36. Ne5 {[%emt 0:00:07]} Be8 {[%emt 0:00:31]} 37. Rxc2 {[%emt 0:00:52]} Rxc2+ {[%emt 0:00:07]} 38. Re2 {[%emt 0:00:03]} Rc3 {[%emt 0:00:22]} 39. Rd2 {[%emt 0:01:21]} g5 {[%emt 0:01:11]} 40. g3 {[%emt 0:01:08]} fxg3+ {[%emt 0:06:44]} 1/2-1/2

[Event "Karel Janecek Open 2025"]
[Site "Prague"]
[Date "2025.03.01"]
[Round "3.16"]
[White "Druska, Juraj"]
[Black "Walek, Petr"]
[Result "1-0"]
[Annotator "ChessBase"]
[ECO "B75"]
[WhiteElo "2442"]
[BlackElo "2279"]
[PlyCount "57"]
[EventDate "2025.02.21"]
[EventType "swiss"]
[EventCountry "CZE"]
[SourceTitle "playchess.com"]
[Source "ChessBase"]
[SourceQuality "1"]
[TimeControl "40/5400+30:1800+30"]

1. e4 {[%emt 0:00:10]} c5 {[%emt 0:00:04]} 2. Nf3 {[%emt 0:00:16]} d6 {[%emt 0:00:17]} 3. d4 {[%emt 0:00:47]} cxd4 {[%emt 0:00:04]} 4. Nxd4 {[%emt 0:00:14]} Nf6 {[%emt 0:00:13]} 5. Nc3 {[%emt 0:00:09]} g6 {[%emt 0:00:17]} 6. Be3 {[%emt 0:00:44]} Nc6 {[%emt 0:00:44]} 7. f3 {[%emt 0:00:16]} h5 {[%emt 0:00:48]} 8. Bc4 {[%emt 0:00:53]} Bd7 {[%emt 0:00:19]} 9. Qd2 {[%emt 0:00:22]} Bg7 {[%emt 0:01:22]} 10. O-O-O {[%emt 0:00:29]} Na5 {[%emt 0:03:01]} 11. Bd3 {[%emt 0:00:18]} Rc8 {[%emt 0:00:36]} 12. Kb1 {[%emt 0:01:20]} Nc4 {[%emt 0:08:51]} 13. Bxc4 {[%emt 0:00:10]} Rxc4 {[%emt 0:00:04]} 14. Nde2 {[%emt 0:00:12]} b5 {[%emt 0:10:21]} 15. Bd4 {[%emt 0:02:53]} O-O {[%emt 0:07:23]} 16. e5 {[%emt 0:00:36]} Ne8 {[%emt 0:16:18]} 17. exd6 {[%emt 0:00:10]} Nxd6 {[%emt 0:01:15]} 18. Bxg7 {[%emt 0:00:10]} Kxg7 {[%emt 0:00:08]} 19. Nd5 {[%emt 0:00:07]} Kg8 {[%emt 0:10:21]} 20. Rhe1 {[%emt 0:14:17]} Be6 {[%emt 0:11:54]} 21. Nef4 {[%emt 0:07:16]} Bxd5 {[%emt 0:04:28]} 22. Nxd5 {[%emt 0:00:08]} e6 {[%emt 0:05:17]} 23. Nc3 {[%emt 0:00:25]} Rc6 {[%emt 0:05:12]} 24. Ne4 {[%emt 0:02:42]} Nb7 {[%emt 0:05:07]} 25. Qh6 {[%emt 0:00:51]} Nd6 {[%emt 0:06:36]} 26. Ng5 {[%emt 0:01:22]} Re8 {[%emt 0:00:20]} 27. Qh7+ {[%emt 0:04:31]} Kf8 {[%emt 0:00:01]} 28. Rxd6 {[%emt 0:00:12]} Qxg5 {[%emt 0:02:02]} 29. Rxc6 {[%emt 0:00:07]} 1-0

[Event "Karel Janecek Open 2025"]
[Site "Prague"]
[Date "2025.03.02"]
[Round "4.1"]
[White "Druska, Juraj"]
[Black "Pechac, Jergus"]
[Result "1/2-1/2"]
[Annotator "ChessBase"]
[ECO "C47"]
[WhiteElo "2442"]
[BlackElo "2603"]
[PlyCount "31"]
[EventDate "2025.02.21"]
[EventType "swiss"]
[EventCountry "CZE"]
[SourceTitle "playchess.com"]
[Source "ChessBase"]
[SourceQuality "1"]
[TimeControl "40/5400+30:1800+30"]

1. e4 {[%emt 0:00:11]} e5 {[%emt 0:00:12]} 2. Nc3 {[%emt 0:00:30]} Nf6 {[%emt 0:00:08]} 3. Nf3 {[%emt 0:00:10]} Nc6 {[%emt 0:00:04]} 4. d4 {[%emt 0:00:13]} exd4 {[%emt 0:00:04]} 5. Nxd4 {[%emt 0:00:11]} Bb4 {[%emt 0:00:03]} 6. Nxc6 {[%emt 0:00:15]} bxc6 {[%emt 0:00:04]} 7. Bd3 {[%emt 0:00:12]} d5 {[%emt 0:00:04]} 8. Bd2 {[%emt 0:00:15]} O-O {[%emt 0:00:06]} 9. O-O {[%emt 0:00:12]} Bxc3 {[%emt 0:00:02]} 10. Bxc3 {[%emt 0:00:14]} dxe4 {[%emt 0:00:03]} 11. Bxf6 {[%emt 0:00:23]} Qxf6 {[%emt 0:00:04]} 12. Bxe4 {[%emt 0:00:08]} Qxb2 {[%emt 0:00:04]} 13. Bxc6 {[%emt 0:00:12]} Rb8 {[%emt 0:00:03]} 14. Rb1 {[%emt 0:00:25]} Qxb1 {[%emt 0:00:05]} 15. Qxb1 {[%emt 0:00:06]} Rxb1 {[%emt 0:00:05]} 16. Rxb1 {[%emt 0:00:05]} 1/2-1/2

[Event "Karel Janecek Open 2025"]
[Site "Prague"]
[Date "2025.03.02"]
[Round "4.2"]
[White "Raja Rithvik R"]
[Black "Neuman, Petr"]
[Result "1/2-1/2"]
[Annotator "ChessBase"]
[ECO "D94"]
[WhiteElo "2522"]
[BlackElo "2436"]
[PlyCount "56"]
[EventDate "2025.02.21"]
[EventType "swiss"]
[EventCountry "CZE"]
[SourceTitle "playchess.com"]
[Source "ChessBase"]
[SourceQuality "1"]
[TimeControl "40/5400+30:1800+30"]

1. d4 {[%emt 0:00:09]} d5 {[%emt 0:02:39]} 2. c4 {[%emt 0:00:07]} c6 {[%emt 0:00:05]} 3. Nf3 {[%emt 0:00:22]} Nf6 {[%emt 0:00:05]} 4. e3 {[%emt 0:00:14]} g6 {[%emt 0:00:05]} 5. Nc3 {[%emt 0:02:17]} Bg7 {[%emt 0:00:06]} 6. Be2 {[%emt 0:00:06]} O-O {[%emt 0:00:04]} 7. O-O {[%emt 0:00:05]} dxc4 {[%emt 0:00:04]} 8. Bxc4 {[%emt 0:00:04]} Bg4 {[%emt 0:00:06]} 9. h3 {[%emt 0:00:18]} Bxf3 {[%emt 0:00:05]} 10. Qxf3 {[%emt 0:00:03]} Nbd7 {[%emt 0:00:05]} 11. Rd1 {[%emt 0:00:03]} e5 {[%emt 0:00:09]} 12. d5 {[%emt 0:00:05]} e4 {[%emt 0:00:21]} 13. Qf4 {[%emt 0:00:04]} cxd5 {[%emt 0:12:54]} 14. Nxd5 {[%emt 0:00:23]} Nb6 {[%emt 0:02:33]} 15. Nc3 {[%emt 0:00:06]} Qe7 {[%emt 0:02:41]} 16. Bb3 {[%emt 0:00:11]} Rac8 {[%emt 0:01:48]} 17. Qd6 {[%emt 0:00:52]} Qxd6 {[%emt 0:05:49]} 18. Rxd6 {[%emt 0:00:06]} Rfd8 {[%emt 0:00:39]} 19. Rxd8+ {[%emt 0:16:12]} Rxd8 {[%emt 0:00:14]} 20. Kf1 {[%emt 0:00:09]} Nbd7 {[%emt 0:12:32]} 21. Bd2 {[%emt 0:05:43]} Nc5 {[%emt 0:00:30]} 22. Be1 {[%emt 0:00:04]} Nxb3 {[%emt 0:03:42]} 23. axb3 {[%emt 0:00:18]} a6 {[%emt 0:00:41]} 24. Ra4 {[%emt 0:03:02]} Nd7 {[%emt 0:05:15]} 25. Rc4 {[%emt 0:08:38]} f5 {[%emt 0:06:17]} 26. Rc7 {[%emt 0:00:34]} b6 {[%emt 0:07:15]} 27. Rc6 {[%emt 0:26:15]} Rb8 {[%emt 0:03:21]} 28. Ke2 {[%emt 0:14:15]} Nc5 {[%emt 0:03:16]} 1/2-1/2